Cogmind - Beta 17 @@@ ROGUE MODE // 2026.07.03 @ 15:50:51 Player: nilac Result: Destroyed by Y-45 Defender with Heavy Assault Rifle Performance ------------- Evolutions (1) 500 Regions Visited (3) 600 Robots Destroyed (53) 265 Value Destroyed (1372) 1372 Prototype IDs (1) 20 Alien Tech Used (0) 0 Bonus (0) 0 TOTAL SCORE: 2757 Bonus ------- None Cogmind --------- Core Integrity 0/400 Matter 447/450 Energy 415/415 System Corruption 0% Temperature Cool (96) Movement Treading (240) Ox1 Location -9/Storage Parts ------- > --- POWER (2) -------- Ion Engine Improved Ion Engine > --- PROPULSION (2) --- Light Treads > --- UTILITY (3) ------ Large Storage Unit Large Matter Pod Visual Processing Unit > --- WEAPON (2) ------- Light Assault Rifle > --- INVENTORY (15) --- Ion Engine Light Ion Engine Improved Ion Engine Light Treads Light Treads Light Treads Aluminum Leg Compact Wheel Heat Sink Heat Sink Large Storage Unit Medium Armor Plating Beam Rifle Heavy Assault Rifle Heavy Assault Rifle Peak State ------------ > --- POWER ------------ Improved Ion Engine Improved Ion Engine > --- PROPULSION ------- Compact Wheel Compact Wheel > --- UTILITY ---------- Large Storage Unit Large Matter Pod Visual Processing Unit > --- WEAPON ----------- Small Laser Advanced Beam Cannon > --- INVENTORY -------- Improved Ion Engine Aluminum Leg Aluminum Leg Heat Sink Large Storage Unit Heavy EM Pulse Gun Small Laser Light Assault Rifle [Rating: 15] Favorites ----------- Power Improved Ion Engine Engine Improved Ion Engine Propulsion Light Treads Treads Light Treads Leg Aluminum Leg Wheel Compact Wheel Utility Visual Processing Unit Device Heat Sink Storage Large Matter Pod Processor Visual Processing Unit Protection Power Shielding Weapon Small Laser Energy Gun Small Laser Energy Cannon Advanced Beam Cannon Ballistic Gun Light Assault Rifle Build | -11 -10 -9 -9 ------- Run | Yrd Mat Mat Sto Slots Evolved 2 | . . 2 . Power 1 | . . 1 . Propulsion . | . . . . Utility 1 | . . 1 . Weapon . | . . . . Parts Attached 45 | 5 15 20 5 Power 10 | 1 2 5 2 Engine 10 | 1 2 5 2 Core . | . . . . Reactor . | . . . . Propulsion 14 | 1 6 6 1 Treads 5 | 1 1 2 1 Leg 3 | . . 3 . Wheel 6 | . 5 1 . Hover . | . . . . Flight . | . . . . Utility 7 | 1 1 5 . Device 1 | . . 1 . Storage 3 | 1 . 2 . Processor 1 | . . 1 . Hackware . | . . . . Protection 2 | . 1 1 . Artifact . | . . . . Weapon 14 | 2 6 4 2 Energy Gun 9 | 1 5 2 1 Energy Cannon 1 | . . 1 . Ballistic Gun 4 | 1 1 1 1 Ballistic Cannon . | . . . . Launcher . | . . . . Special Weapon . | . . . . Impact Weapon . | . . . . Slashing Weapon . | . . . . Piercing Weapon . | . . . . Special Melee Weapon . | . . . . Unidentified Prototypes 1 | . . 1 . Parts Lost 17 | . 5 10 2 Power 3 | . 1 2 . Propulsion 6 | . 1 4 1 Utility 1 | . . 1 . Weapon 7 | . 3 3 1 Highest Loss Streak 5 | . 3 5 2 To Critical Strikes . | . . . . Average Backups 9 | 5 6 8 13 Power 1 | . 1 1 2 Propulsion 2 | 3 3 1 4 Utility 1 | . . 2 4 Weapon 2 | 1 1 3 2 Tool/Special . | . . . . Unused Backups 17 | . 3 1 13 Power 5 | . 1 1 3 Propulsion 6 | . 2 . 4 Utility 3 | . . . 3 Weapon 3 | . . . 3 Tool/Special . | . . . . Average Slot Usage (%) 96 | . 93 95 99 Engine 19 | . 13 21 21 Treads 9 | . 9 3 22 Leg 6 | . . 11 . Wheel 7 | . 16 6 . Storage 16 | . 12 16 22 Processor 7 | . . 10 11 Protection 4 | . 13 2 . Energy Gun 11 | . 14 11 10 Energy Cannon 4 | . . 8 . Ballistic Gun 6 | . 11 1 11 Peak Build Rating 15 | 5 7 15 14 Average Rating 11 | 3 6 13 12 On Entrance 6 | . 5 7 14 Avg Prop Armor Cover (%) . | . . . . Naked Turns . | . . . . Heaviest Build 42 | 13 14 42 41 Greatest Support 40 | 20 40 40 40 Greatest Overweight (x) 4 | 3 . 4 1 Average Overweight (x) . | . . 1 . Largest Inventory Capacity 15 | 8 8 15 15 Average Capacity 11 | 7 7 12 15 Most Carried 15 | 8 8 14 15 Average Carried 9 | 6 6 8 13 Final Capacity 15 | 8 5 15 15 Final Carried 15 | 7 5 12 15 Class Distribution -------------------- 68% | Mutant 31% | Scavenger-Mutant Dominant Class ---------------- Mutant | -10/Materials Mutant | -9/Materials Scavenger-Mutant | -9/Storage Resources | -11 -10 -9 -9 ----------- Run | Yrd Mat Mat Sto Matter Collected 991 | 240 244 398 109 Remotely . | . . . . Salvage Created 1823 | . 518 901 404 Parts 117 | . 35 51 31 Haulers Intercepted . | . . . . Recyclers Shooed . | . . . . Parts Field Recycled . | . . . . Retrieved Matter . | . . . . Parts Self-Destructed . | . . . . Prevented . | . . . . Parts Restored . | . . . . Kills | -11 -10 -9 -9 ------- Run | Yrd Mat Mat Sto Combat Hostiles Destroyed 40 | . 12 19 9 Guns 28 | . 12 7 9 Cannons 10 | . . 10 . AOE 1 | . . 1 . Classes Destroyed 8 | . 4 3 1 Worker 3 | . 2 1 . Builder 1 | . . 1 . Recycler 1 | . . 1 . Operator 1 | . . . 1 Watcher 7 | . 3 4 . Swarmer 11 | . 5 6 . Grunt 21 | . 7 8 6 Sentry 8 | . . 5 3 Best Kill Streak 7 | . 4 7 2 Combat Bots Only 5 | . 4 5 2 Max Kills in Single Turn 2 | . 2 2 1 Gunslinging . | . . . . Exploded 1 | . . 1 . Melee . | . . . . Uniques/NPCs Destroyed . | . . . . Combat | -11 -10 -9 -9 -------- Run | Yrd Mat Mat Sto Hostile Shots Fired 357 | . 120 161 76 Missed 88 | . 25 41 22 Hits 269 | . 95 120 54 Projectile 269 | . 95 120 54 Critical Strikes 4 | . 1 2 1 Damage Taken 3140 | . 1031 1383 726 Core 545 | . 143 237 165 Absorbed by Shields . | . . . . Redirected to Shielding 37 | . 37 . . Regen/Repaired (Parts) 75 | . 75 . . Core Remaining (%) 71 | 100 42 . . Volleys Fired 175 | . 51 70 54 Largest 2 | . 2 2 2 Hottest 113 | . 95 113 65 Shots Fired 319 | . 97 122 100 Gun 275 | . 97 78 100 Cannon 44 | . . 44 . Launcher . | . . . . Special . | . . . . Kinetic 109 | . 44 11 54 Thermal 181 | . 51 87 43 Explosive . | . . . . Electromagnetic 29 | . 2 24 3 Robot Hit Streak 10 | . 5 10 8 Robot Miss Streak 8 | . 5 8 4 Penetration Max . | . . . . Secondary Targets 6 | . 2 2 2 Max Gunslinging Chain 1 | . 1 1 1 Shots Hit Robots 189 | . 54 65 70 Core Hits 85 | . 29 29 27 Critical Kills 1 | . . 1 . Critical Parts Destroyed 1 | . . . 1 Critical Strikes 3 | . 1 1 1 Burn 1 | . 1 . . Meltdown 1 | . . 1 . Destroy 1 | . . . 1 Melee Attacks . | . . . . Impact . | . . . . Slashing . | . . . . Piercing . | . . . . Sneak Attacks . | . . . . Combat Hostiles . | . . . . Follow-up Attacks . | . . . . Damage Inflicted 2598 | . 675 1236 687 Guns 1894 | . 675 532 687 Cannons 553 | . . 553 . Explosions 151 | . . 151 . Melee . | . . . . Ramming . | . . . . Kinetic 665 | . 333 51 281 Thermal 1650 | . 327 951 372 Explosive . | . . . . Electromagnetic 283 | . 15 234 34 Impact . | . . . . Slashing . | . . . . Piercing . | . . . . Highest Corruption . | . . . . Average Corruption . | . . . . Corruption Purged . | . . . . Corruption Blocked . | . . . . Overload Shots . | . . . . Overflow Damage 17 | . . 17 . Projectiles 17 | . . 17 . Explosions . | . . . . Melee . | . . . . Knockbacks . | . . . . Impact . | . . . . Kinetic . | . . . . Secondary . | . . . . Self-Inflicted Damage . | . . . . Shots . | . . . . Rammed . | . . . . Targets Rammed . | . . . . Kicked . | . . . . Crushed . | . . . . Highest Temperature 535 | . 146 535 168 Average Temperature 123 | . 59 173 63 Received Heat Transfer 1134 | . 423 423 288 Effects 19 | . . 19 . Shutdowns 5 | . . 5 . Energy Bleed 2 | . . 2 . Interference 10 | . . 10 . Matter Decay 1 | . . 1 . Damage (minor) 1 | . . 1 . Siege Activations . | . . . . Martial Activations . | . . . . Shielding Activations . | . . . . Robots Disrupted . | . . . . Combat Hostiles . | . . . . Robots Corrupted . | . . . . Combat Hostiles . | . . . . Parts Fried 1 | . . 1 . Impact Corruptions . | . . . . Robots Melted 1 | . . 1 . Combat Hostiles 1 | . . 1 . Parts Melted 8 | . 2 6 . Heat Transferred 3458 | . 859 1749 850 Parts Sabotaged . | . . . . Parts Stolen . | . . . . Parts Stripped . | . . . . Power Chain Reactions 2 | . . 2 . Alert | -11 -10 -9 -9 ------- Run | Yrd Mat Mat Sto Maximum Alert Level . | . . . . Low Security (%) 100 | 100 100 100 100 Level 1 . | . . . . Level 2 . | . . . . Level 3 . | . . . . Level 4 . | . . . . Level 5 . | . . . . High Security . | . . . . Max Security . | . . . . Peak Influence 185 | . 145 185 77 Initial 53 | . . 53 27 Average 69 | . 51 95 42 Influence Increases 1180 | . 371 559 250 Destroy 0b10 Robot/C 800 | . 240 380 180 Destroy 0b10 Robot/NC 65 | . 25 35 5 Destroy Leader 214 | . 56 108 50 Successful Hack 5 | . 5 . . Disable Machine 30 | . . 15 15 Destroy Structure 6 | . . 6 . Lose Combat Pursuer 60 | . 45 15 . Influence Decreases 1144 | . 242 622 280 Entered New Map 115 | . . 76 39 Time Decay 859 | . 192 446 221 Lost Part 170 | . 50 100 20 Squads Dispatched 6 | . 1 3 2 Investigation 3 | . 1 2 . Extermination . | . . . . Reinforcement 2 | . . 1 1 Assault . | . . . . Garrison 1 | . . . 1 Intercept . | . . . . Searches Triggered . | . . . . Construction Impeded . | . . . . Haulers Reinforced . | . . . . Active Scanning Responses . | . . . . Cargo Convoy Interrupts . | . . . . Stealth | -11 -10 -9 -9 --------- Run | Yrd Mat Mat Sto Distress Signals 5 | . 1 2 2 Communications Jammed . | . . . . Distress Signals . | . . . . Times Spotted 63 | . 19 26 18 Peak Tracking Total 6 | . 4 6 4 Tactical Retreats 4 | . 3 1 . Traps | -11 -10 -9 -9 ------- Run | Yrd Mat Mat Sto Traps Triggered 4 | . 2 1 1 Indirectly . | . . . . Trap Hack Attempts . | . . . . Triggered . | . . . . Disarmed . | . . . . Reprogrammed . | . . . . Reused . | . . . . Traps Extracted . | . . . . Installed . | . . . . Triggered . | . . . . Machines | -11 -10 -9 -9 ---------- Run | Yrd Mat Mat Sto Machines Disabled 2 | . . 1 1 Max in Single Turn 1 | . . 1 1 Machines Repaired . | . . . . Machines Dismantled . | . . . . Machines Sabotaged . | . . . . Overloaded Fab Kills . | . . . . Hacking | -11 -10 -9 -9 --------- Run | Yrd Mat Mat Sto Machines Accessed 4 | . 3 . 1 Terminals 2 | . 1 . 1 Fabricators . | . . . . Repair Stations 1 | . 1 . . Recycling Units 1 | . 1 . . Scanalyzers . | . . . . Garrison Access . | . . . . Total Hacks 12 | . 10 . 2 Successful 10 | . 8 . 2 Failed 2 | . 2 . . Catastrophic . | . . . . Database Lockouts . | . . . . Manual . | . . . . Terminals 5 | . 3 . 2 Fabricators . | . . . . Repair Stations 6 | . 6 . . Recycling Units 1 | . 1 . . Scanalyzers . | . . . . Garrison Access . | . . . . Terminal Hacks 4 | . 2 . 2 Record 1 | . . . 1 Alert Level 2 | . 2 . . Locate Traps 1 | . . . 1 Fabricator Hacks . | . . . . Repair Station Hacks 5 | . 5 . . Scan Component 3 | . 3 . . Repair 2 | . 2 . . Recycling Unit Hacks 1 | . 1 . . Report Inventory 1 | . 1 . . Scanalyzer . | . . . . Garrison Access Hacks . | . . . . Unauthorized Hacks . | . . . . Terminals . | . . . . Fabricators . | . . . . Repair Stations . | . . . . Recycling Units . | . . . . Scanalyzers . | . . . . Garrison Access . | . . . . Data Cores Recovered 1 | . . . 1 Used . | . . . . Hacking Detections 1 | . 1 . . Full Trace Events . | . . . . Feedback Events . | . . . . Feedback Blocked . | . . . . Robot Schematics Acquired . | . . . . Robots Built . | . . . . Authchips . | . . . . Time . | . . . . Total Robot Build Rating . | . . . . Part Schematics Acquired . | . . . . Parts Built . | . . . . Authchips . | . . . . Time . | . . . . Total Part Build Rating . | . . . . Part Studies Acquired . | . . . . Parts Repaired 2 | . 2 . . Time 64 | . 64 . . Parts Recycled . | . . . . Recycled Matter . | . . . . Retrieved Matter . | . . . . Retrieved Components . | . . . . Parts Scanalyzed . | . . . . Part Schematics Acquired . | . . . . Parts Damaged . | . . . . Bothacking | -11 -10 -9 -9 ------------ Run | Yrd Mat Mat Sto Used RIF Installer . | . . . . Robots Hacked . | . . . . Non-combat . | . . . . Combat . | . . . . Robot Hacks Applied . | . . . . Relay Couplers Released . | . . . . Fabnet Peak Effective % . | . . . . Robots Rewired . | . . . . Allies Hacked . | . . . . Hacks Repelled . | . . . . Allies | -11 -10 -9 -9 -------- Run | Yrd Mat Mat Sto Total Allies . | . . . . Largest Group . | . . . . Highest-Rated Group . | . . . . Highest-Rated Ally . | . . . . Total Orders . | . . . . Ally Attacks . | . . . . Total Damage . | . . . . Kills . | . . . . Allies Corrupted . | . . . . Allies Melted . | . . . . Intel | -11 -10 -9 -9 ------- Run | Yrd Mat Mat Sto Active Infowar (turns) 1366 | . . 895 471 Optics 1366 | . . 895 471 Robot Analysis Total . | . . . . Derelict Logs Recovered . | . . . . Drone Launches . | . . . . Drone Recoveries . | . . . . Exploration | -11 -10 -9 -9 ------------- Run | Yrd Mat Mat Sto Turns Passed 2175 | 96 504 1104 471 Spaces Moved 972 | 49 270 466 187 Core 18 | 18 . . . Treads 359 | 31 77 64 187 Legs 194 | . . 194 . Wheels 401 | . 193 208 . Hover . | . . . . Flight . | . . . . Fastest Speed 50 | 50 80 100 160 Average Speed 161 | 165 114 186 165 Slowest Speed 400 | 200 160 400 240 Overloaded Moves . | . . . . Propulsion Burnouts . | . . . . Robots Hopped . | . . . . Potential Cave-ins . | . . . . Cave-ins Triggered . | . . . . Exploration Rate (%) 33 | 4 50 48 32 Regions Visited 3 Branch Regions 1 Pre-discovered Areas . | . . . . Known Exits Taken . | . . . . Unknown Exits Taken 3 | 1 1 1 . Scrap Searched . | . . . . Spaces Dug . | . . . . Terrain Destroyed 4 | . . 4 . Melee . | . . . . Projectile . | . . . . AOE 4 | . . 4 . Terrain Rammed . | . . . . Walls Destroyed . | . . . . Machines Disabled . | . . . . Actions | -11 -10 -9 -9 --------- Run | Yrd Mat Mat Sto Total 1281 | 63 373 583 262 Wait 16 | . 16 . . Move 969 | 48 269 465 187 Hop . | . . . . Pick Up 51 | 10 14 19 8 Fast Attach 10 | 2 1 7 . Attach 33 | 3 13 13 4 Detach 2 | . . 2 . Swap 4 | . 1 1 2 Drop 21 | . 8 6 7 Fire 175 | . 51 70 54 Melee . | . . . . Ram . | . . . . Kick . | . . . . Crush . | . . . . Escape Stasis . | . . . . Rewire . | . . . . Trap . | . . . . Miscellaneous . | . . . . Route ------- -11/Scrapyard -10/Materials (discovered 3 exits: *Mat x2 / [*Min]) -9/Materials (discovered 4 exits: [*Mat x2] / [*Min] / *Sto) -9/Storage History --------- Turn | Location | Event 32 | -11/Scrapyard | Discovered new exit (range 16) 97 | -11/Scrapyard | Entered Materials 144 | -10/Materials | Discovered new exit (range 15) 322 | -10/Materials | Build established: Mutant 329 | -10/Materials | Lost 3 parts (1p1n1w) 337 | -10/Materials | Discovered new exit (range 15) 504 | -10/Materials | Core integrity fell below 50% 548 | -10/Materials | Repaired Lgt. Nuclear Core 552 | -10/Materials | Discovered new exit (range 10) 574 | -10/Materials | Repaired Sml. Storage Unit? 601 | -10/Materials | Entered another Materials area 601 | -9/Materials | Evolved 2 slots: Power x1, Utility x1 706 | -9/Materials | Discovered new exit (range 10) 906 | -9/Materials | Discovered new exit (range 7) 1494 | -9/Materials | Discovered new exit (range 13) 1532 | -9/Materials | Core integrity fell below 50% 1547 | -9/Materials | Lost 5 parts (1p2n2w) 1594 | -9/Materials | Discovered new exit (range 8) 1705 | -9/Materials | Entered Storage 1812 | -9/Storage | Build established: Scavenger-Mutant 2118 | -9/Storage | Garrison activated, responded to threat 2162 | -9/Storage | Core integrity fell below 20% 2176 | -9/Storage | Destroyed by Y-45 Defender with Heavy Assault Rifle Last Messages --------------- R-06 Scavenger collects Ion Engine. K-01 Serf collects debris. R-06 Scavenger collects Lgt. Ion Engine. Acquired 5 matter. K-01 Serf collects debris. R-06 Scavenger collects Wheel. M-13 Machinist repairs O-16 Technician. Acquired 1 matter. K-01 Serf collects debris. Acquired 1 matter. R-06 Scavenger collects Lgt. Ion Engine. Acquired 1 matter. R-06 Scavenger collects Welding Torch. K-01 Serf collects debris. Sml. Laser destroyed. K-01 Serf collects debris. Lgt. Treads destroyed. K-01 Serf collects debris. W-16 Scout suffers critical hit (Destroy). Destroyed Hover Unit. Map ----- +----------------------------------------------------+ | ????????# ## ##??????????????????????? | | ???????## # ###########????????????? | | ???????# = """" # #????????????? | | ???????##% """" + T ^^ #????????????? | | ????????# """" # ^^ #????????????? | | ????????# "" # ####+######????????????? | | ????????# ####%##???? ?????????????????? | | ????????# #??# ##?????"????????????????? | | ????????##"Y"######??# T#??????????????????????? | | ?????????#"""#???????# ##??????????????????????? | | ?????????#####???????#%#???????????????????????? | | ?????????????????????# #???????????????????????? | | ?????????????????????# #???????????????????????? | | ?????????????????????# #???????????????????????? | | ?????????????????????# #???????????????????????? | | ?????????????????????# #???????????????????????? | | ?????????????????????# #???????????????????????? | | ?????????????????????# #???????????????????????? | | ?????????????????????# #???????????????????????? | | ?????????????????????# #???????????????????????? | | ?????????????????????# #???????????????????????? | | ?????????????????????# #???????????????????????? | | ?????????????????????# #???????????????????????? | | ?????????????????????#w#???????????????????????? | | ????????????????????##%####????????????????????? | | ????????????????????# @ =####+#########???????? | | ????????????????????# %%Y % ???? | | ????????????????????# k g % ???? | | ????????????????????# ==! ???? | | ????????????????????# ####+#########+#?????? | | ????????????????????#######???? ??????????????? | | ???????????????????????????????? ?????????????? | | ????????????????????????????????? #???????????? | | ?????????????????????????????????? #???????????? | | ???????????????????????????????????????????????? | | ???????????????????????????????????????????????? | | ???????????????????????????????????????????????? | | ???????????????????????????????????????????????? | | ???????????????????????????????????????????????? | | ???????????????????????????????????????????????? | | ???????????????????????????????????????????????? | | ???????????????????????????????????????????????? | | ???????????????????????????????????????????????? | | | | | | | | | | | | | | | +----------------------------------------------------+ Best States ------------- Heat Dissipation 38 Energy Generation 19 Energy Capacity 430 Matter Stores 450 Matter Capacity 450 Sight Range 18 Terrain Scan Density 10 Armor Coverage 225 Power Shielding 33 Evasion (%) 44 Recoil Reduction 2 Item Schematics ----------------- None Robot Schematics ------------------ None Fabricated ------------ Nothing Repaired ---------- Sml. Storage Unit | 50% | -10/Materials Studied --------- None Alien Tech Used ----------------- None Achievements -------------- DATA ERROR: Steam Global Achievement% Organ Harvest Spot Them First There's More Where That Came From Well Done Challenges ------------ None Game ------ Seed MetamassCorruptionScreen Manual? 0 Play Time 00:49:30 Cumulative 11.9 hours Start 2026.07.03 @ 14:55:51 End 2026.07.03 @ 15:50:51 Sessions 1 Manual Loads 0 Difficulty Rogue Special Mode None Game No. 11 Rogue 11 Adventurer 0 Explorer 0 Win Type - Total 0 Types 0/0/0/0/0/0/0/0/0/0 Lore% 2 Gallery% 9 Achievement% 7 Wizard Run 0 Options --------- Layout 1 ASCII 0 Keyboard 0 Movement Mouse Keybinds 0 Fullscreen 0 Font 42/SmallcapsGlow Map View 50x35 Zoom Use 0% Tactical HUD 0 Map Filters NONE Filters NONE Steam 1 RUN: ff06d3e2-4b6d-4591-b2ee-2cecf84bca05